bitfinex/quotes_ETHUSD_20220305
["timestamp","ask_amount","ask_price","bid_price","bid_amount"]
[1646444238478,3.04155766,2604.3,2603.8,2.55730933]
[1646444238915,0.64760878,2604.2,2603.8,2.55730933]
[1646444239122,2.00241917,2604.3,2603.8,2.55730933]
[1646444239320,2.0,2604.3,2603.8,3.94050933]
[1646444239520,2.00241827,2604.3,2603.8,2.55730933]
[1646444239820,2.00241827,2604.3,2603.8,1.68030368]
[1646444240021,0.64756783,2604.2,2603.8,1.67873533]
[1646444241020,1.83188744,2604.2,2603.8,1.67873533]
[1646444241225,0.64756783,2604.1,2603.8,1.67873533]
[1646444242874,0.64756783,2604.0,2603.9,0.09607]
[1646444243272,0.64756783,2604.2,2603.9,0.09607]
[1646444243471,0.64756783,2604.1,2603.9,0.09607]
[1646444243774,2.00264472,2604.3,2603.9,0.09607]
[1646444243979,0.64928265,2604.2,2603.9,0.09607]
[1646444245179,0.64928265,2604.2,2604.0,1.01803139]
[1646444245376,0.70309034,2604.9,2604.0,1.01803139]
[1646444245377,2.0,2604.6,2604.0,1.01803139]
[1646444245579,0.00272005,2604.3,2604.0,1.01803139]
[1646444246430,0.64918778,2604.5,2604.1,1.53563]
[1646444246629,0.89509034,2605.1,2604.1,1.53563]
[1646444246630,2.0,2605.1,2604.1,1.53563]
[1646444246823,0.64918306,2605.0,2604.3,0.3832]
[1646444247026,0.64918306,2604.9,2604.5,0.3832]
[1646444247223,0.64918306,2604.8,2604.5,0.3832]
[1646444247423,1.7052248,2605.4,2604.6,1.19417156]
[1646444247623,0.64919888,2605.3,2604.7,0.09603]
[1646444248024,0.64919888,2605.3,2604.7,3.97923]
[1646444248327,0.64919888,2605.2,2604.9,0.3832]
[1646444248524,0.70309034,2606.0,2605.1,0.3832]
[1646444248723,0.64856672,2605.9,2605.3,0.3832]
[1646444248925,0.70309034,2606.0,2605.0,1.0]
[1646444249133,1.14485081,2605.7,2605.1,4.45386768]
[1646444249328,0.70309034,2606.0,2605.2,0.3832]
[1646444249528,2.93891947,2606.3,2605.3,0.096]
[1646444249529,0.70309034,2606.1,2605.3,0.096]
[1646444250371,1.12438173,2605.8,2605.3,0.096]
[1646444250571,1.12438173,2605.8,2604.9,2.3498]
[1646444250572,1.12438173,2605.8,2605.0,0.19204]
[1646444250773,1.82747207,2605.8,2605.0,0.19204]
[1646444250978,1.12438173,2605.8,2605.0,0.19204]
[1646444251371,0.92057759,2605.3,2605.0,0.19204]
[1646444252171,0.70309034,2605.8,2605.0,0.19204]
[1646444252672,1.08629034,2605.9,2605.0,0.19204]
[1646444252874,0.00274773,2605.3,2605.0,0.19204]
[1646444253072,0.00274773,2605.3,2605.1,1.16668981]
[1646444253772,0.92699654,2605.7,2605.1,1.16668981]
[1646444254023,0.00274772,2605.3,2605.1,1.16668981]
[1646444254925,0.92699654,2605.7,2605.1,1.26269981]
[1646444255124,0.00274772,2605.3,2605.1,1.26269981]
[1646444255724,0.00274772,2605.3,2605.1,3.56582381]
[1646444255926,0.00274772,2605.3,2605.2,3.8832]
[1646444256226,1.13071947,2606.6,2605.4,0.09599]
[1646444256227,0.70309034,2606.5,2605.4,0.09599]
[1646444256424,1.80447471,2606.5,2605.9,1.01121368]
[1646444256625,1.10138437,2606.5,2605.5,0.3832]
[1646444257032,1.10138437,2606.5,2605.3,1.37980733]
[1646444257227,1.10138437,2606.5,2605.2,3.8392905]
[1646444257228,8.0,2606.4,2604.9,5.8869]
[1646444257426,0.01280917,2606.0,2604.9,1.0]
[1646444257685,0.01280917,2606.0,2604.5,1.22968185]
[1646444257686,0.01293452,2605.4,2604.5,1.22968185]
[1646444257875,2.3832,2605.4,2604.3,1.0]
[1646444258274,0.3832,2605.2,2604.2,1.5926]
[1646444258475,2.0,2605.4,2604.2,1.5926]
[1646444258674,0.3832,2605.3,2604.2,1.5926]
[1646444258875,0.00216448,2605.0,2604.2,1.5926]
[1646444259082,1.06350857,2604.9,2604.3,1.09513308]
[1646444259480,1.06350857,2604.9,2603.9,0.28811]
[1646444259880,3.8832,2605.3,2603.9,0.28811]
[1646444260082,0.00262952,2604.9,2603.9,0.28811]
[1646444260683,0.00262952,2604.9,2604.0,0.09606]
[1646444260884,3.8832,2605.3,2604.0,0.09606]
[1646444261083,1.0088582,2604.8,2604.0,0.09606]
[1646444261284,3.5,2604.7,2603.8,1.67776542]
[1646444261534,15.5532,2604.7,2603.8,1.67776542]
[1646444261725,16.5532,2604.7,2603.8,1.67776542]
[1646444261923,13.0532,2604.7,2603.8,1.67776542]
[1646444262228,12.0532,2604.4,2603.8,1.41478759]
[1646444262426,12.0532,2604.2,2603.8,1.41478759]
[1646444262624,12.0532,2604.0,2603.8,1.41478759]
[1646444262823,0.3832,2603.9,2603.8,1.41478759]
[1646444263023,0.3832,2603.7,2603.5,0.25163042]
[1646444263227,3.5,2603.6,2602.8,0.00163042]
[1646444263426,0.3832,2603.5,2602.8,0.00163042]
[1646444263628,0.3832,2603.3,2602.4,0.00163042]
[1646444263826,0.3832,2603.3,2602.3,0.014304]
[1646444265031,0.3832,2603.1,2602.3,0.014304]
[1646444265274,0.192,2603.0,2602.3,0.014304]
[1646444265477,1.15892958,2602.4,2602.3,0.014304]
[1646444267874,1.54212958,2602.4,2602.3,0.014304]
[1646444268076,5.04212958,2602.4,2602.3,0.014304]
[1646444268277,5.04212958,2602.4,2602.3,4e-06]
[1646444268278,7.04212958,2602.4,2602.3,4e-06]
[1646444268580,19.71212958,2602.4,2602.3,4e-06]
[1646444268776,19.70210958,2602.4,2602.3,4e-06]
[1646444269024,3.3832,2602.4,2602.3,4e-06]
[1646444269225,2.3832,2602.4,2602.3,4e-06]
[1646444269524,1.0,2602.9,2602.3,4e-06]
[1646444269925,0.192,2603.2,2602.3,4e-06]
[1646444270128,0.91644892,2602.8,2602.3,4e-06]
[1646444270323,0.3832,2602.7,2602.3,4e-06]
[1646444270725,0.3832,2602.7,2602.4,0.00192052]
[1646444271625,0.3832,2602.7,2602.3,4e-06]
[1646444271827,0.13819997,2603.3,2602.3,4e-06]
[1646444272029,2.0,2602.8,2602.4,0.00170447]
[1646444272327,0.192,2603.2,2602.4,0.00170447]
[1646444272527,2.0,2603.1,2602.4,0.00170447]
[1646444272786,1.21197444,2603.0,2602.4,0.00170447]
[1646444272977,1.21197444,2603.0,2602.3,0.00163442]
[1646444273180,1.21197444,2603.0,2602.6,0.00170434]
[1646444274283,1.21197444,2603.0,2602.3,0.00163042]
[1646444274484,2.0,2603.1,2602.7,0.0017043]
[1646444275289,2.0,2603.1,2602.3,0.00163042]
[1646444275484,3.17454407,2603.1,2602.3,0.00163042]
[1646444275686,3.17454407,2603.1,2602.8,0.00153681]
[1646444276521,3.17454407,2603.1,2602.1,0.0934538]
[1646444276723,3.17454407,2603.1,2602.8,0.00153678]
[1646444277527,3.8832,2603.0,2602.8,0.00153678]
[1646444277727,3.8832,2602.9,2602.1,0.0934538]
[1646444277930,1.22960621,2602.4,2602.1,0.0934538]
[1646444278127,1.22960621,2602.4,2602.1,0.09182338]
[1646444279228,1.22960621,2602.4,2602.1,0.09339491]
[1646444280272,1.22960621,2602.4,2602.1,0.09182338]
[1646444280479,1.22960621,2602.4,2602.1,0.09339491]
[1646444280480,3.5,2602.3,2602.1,0.09339491]
[1646444280679,0.3832,2602.3,2602.1,0.09339491]
[1646444280882,15.5532,2602.2,2602.1,0.09339491]
[1646444281079,5.8832,2602.2,2602.1,0.09339491]
[1646444281281,16.5532,2602.2,2602.1,0.09339491]
[1646444281480,16.5532,2602.2,2602.1,0.09182338]
[1646444282078,1.3832,2602.2,2602.1,0.09182338]
[1646444282280,0.3832,2602.3,2602.1,0.09182338]
[1646444283280,2.0,2602.2,2602.1,0.09182338]
[1646444283484,2.0,2602.2,2602.1,0.0195327]
[1646444283682,2.0,2602.2,2602.1,0.0895578]
[1646444283919,1.9991708,2602.2,2602.1,0.1071967]
[1646444284124,0.3832,2603.0,2602.1,0.1071967]
[1646444284323,1.9984,2602.5,2602.1,1.07508743]
[1646444284530,1.9984,2602.5,2602.1,0.1158073]
[1646444285323,1.9984,2602.5,2602.2,0.00156377]
[1646444285739,2.3816,2602.5,2602.2,0.00156377]
[1646444286125,2.3816,2602.5,2602.1,0.1158073]
[1646444286126,14.0516,2602.5,2602.1,0.1158073]
[1646444286324,3.3816,2602.5,2602.1,0.1158073]
[1646444286525,3.3816,2602.5,2602.2,0.00156548]
[1646444286725,13.03972903,2602.4,2602.2,0.00156548]
[1646444287124,2.36972903,2602.4,2602.2,0.00156548]
[1646444287324,1.36972903,2602.4,2602.2,0.0713099]
[1646444287773,1.36972903,2602.4,2602.2,0.07287541]
[1646444288579,1.36972903,2602.4,2602.2,0.0713099]
[1646444288778,1.36972903,2602.4,2602.2,0.07287541]
[1646444289779,1.36972903,2602.4,2602.2,0.0713099]
[1646444289980,1.36972903,2602.4,2602.2,0.07287502]
[1646444290179,0.98652903,2602.4,2602.2,0.07287502]
[1646444290382,3.3816,2602.5,2602.2,0.02287502]
[1646444290383,2.9984,2602.5,2602.2,0.02287502]
[1646444290581,1.9984,2602.5,2602.2,0.02287502]
[1646444290985,1.9984,2602.5,2602.2,0.0213099]
[1646444291420,1.9984,2602.5,2602.2,0.02287499]
[1646444292225,1.9984,2602.5,2602.2,0.0213099]
[1646444292425,1.9984,2602.5,2602.2,0.02287499]
[1646444293232,1.9984,2602.8,2602.2,0.02287499]
[1646444293427,1.9984,2602.8,2602.2,0.0213099]
[1646444293633,1.9984,2602.8,2602.2,0.02287508]
[1646444294232,1.9984,2602.8,2602.4,0.93391848]
[1646444294430,1.9984,2602.8,2602.4,0.95522838]
[1646444294830,1.9984,2602.8,2602.4,0.95679347]
[1646444295031,1.9984,2602.8,2602.4,0.02287499]
[1646444295681,6.75210335,2603.7,2602.4,0.02287499]
[1646444295682,1.9984,2603.1,2602.4,0.02287499]
[1646444295879,1.9984,2603.1,2602.4,0.0213099]
[1646444296082,1.9984,2603.1,2602.5,0.00156503]
[1646444296480,1.9984,2603.1,2602.8,0.95474152]
[1646444296682,1.9984,2603.1,2602.5,0.01331723]
[1646444297084,1.9984,2603.1,2602.5,0.0117522]
[1646444297284,1.9984,2603.1,2602.8,0.0015648]
[1646444297484,2.3816,2603.1,2602.8,0.0111225]
[1646444297688,1.11642679,2602.9,2602.8,0.0111225]
[1646444298285,1.11642679,2602.9,2602.8,0.0095577]
[1646444298686,0.61642679,2602.9,2602.8,0.0095577]
[1646444300127,1.9984,2603.1,2602.8,0.0095577]
[1646444300932,1.9984,2603.1,2602.8,0.0111225]
[1646444301731,1.9984,2603.1,2602.8,0.0095577]
[1646444302132,1.9984,2603.1,2602.8,0.0111225]
[1646444302434,1.0448811,2603.0,2602.8,0.0111225]
[1646444302684,0.6616811,2602.9,2602.8,0.0111225]
[1646444303084,0.6616811,2602.9,2602.8,0.0095577]
[1646444303284,0.6616811,2602.9,2602.8,0.01112253]
[1646444303584,1.0448811,2602.9,2602.8,0.01112253]
[1646444304189,1.0448811,2602.9,2602.8,0.0095577]
[1646444304384,0.6616811,2602.9,2602.8,0.0095577]
[1646444304585,3.5,2602.8,2602.0,0.04956186]
[1646444304786,1.0448811,2602.7,2602.1,0.8986772]
[1646444304986,0.6616811,2602.6,2602.1,0.8986772]
[1646444305386,0.70309034,2603.0,2602.4,0.88023077]
[1646444305387,0.6616811,2602.5,2602.4,0.88023077]
[1646444305587,0.6616811,2602.9,2602.4,1.77890797]
[1646444305787,0.6616811,2602.8,2602.4,0.88023077]
[1646444305986,0.6616811,2602.7,2602.5,0.89879855]
[1646444306185,0.6616811,2602.6,2602.5,0.89879855]
[1646444306421,1.9984,2603.1,2602.5,0.89879855]
[1646444306422,0.6616811,2603.0,2602.5,0.89879855]
[1646444306830,0.6616811,2603.0,2602.5,3.5]
[1646444307123,0.6616811,2602.9,2602.6,0.89872542]
[1646444307322,0.6616811,2602.8,2602.4,4.38023077]
[1646444307523,0.6616811,2602.7,2602.5,0.89873999]
[1646444307723,0.70309034,2603.3,2602.5,0.89873999]
[1646444307923,0.70309034,2603.3,2602.5,4.39873999]
[1646444308123,0.70309034,2603.3,2602.6,0.89873999]
[1646444308322,0.66474013,2603.2,2603.0,0.90676766]
[1646444308524,0.66474013,2603.1,2603.0,0.90676766]
[1646444308723,0.66474013,2603.1,2602.4,3.8832]
[1646444308922,0.66474013,2603.0,2602.5,0.8992612]
[1646444309128,0.66474013,2602.9,2602.5,0.8992612]
[1646444309333,0.66474013,2602.8,2602.5,0.8992612]
[1646444309831,0.00274047,2603.2,2603.0,1.17077175]
[1646444310272,0.66522968,2603.4,2603.0,1.17077175]
[1646444310471,0.70309034,2603.5,2603.0,1.17077175]
[1646444310472,0.00249261,2603.2,2603.0,1.17077175]
[1646444310675,0.66772229,2603.2,2603.0,1.17077175]
[1646444310872,0.00249261,2603.2,2603.1,0.89918489]
[1646444311475,1.36803163,2603.8,2603.1,0.89918489]
[1646444311674,1.36803163,2603.8,2603.6,1.11939781]
[1646444311879,0.66494129,2603.8,2603.7,3.5]
[1646444312081,0.93891947,2604.3,2603.6,1.11939781]
[1646444312082,0.66444636,2604.0,2603.6,1.11939781]
[1646444312276,0.70309034,2604.3,2603.6,1.11939781]
[1646444312277,0.66444636,2603.9,2603.6,1.11939781]
[1646444312475,0.66444636,2603.8,2603.6,1.11939781]
[1646444312676,0.66444636,2603.7,2603.0,1.0]
[1646444312976,0.66444636,2603.6,2603.1,0.90030427]
[1646444313175,0.66444636,2603.5,2602.9,0.25]
[1646444313374,0.70309034,2603.8,2603.0,0.90430217]
[1646444313375,0.66444636,2603.4,2603.0,0.90430217]
[1646444313575,0.66444636,2603.3,2603.1,2.01427351]
[1646444313776,0.00242987,2603.9,2603.2,4.78747426]
[1646444313777,0.70309034,2603.9,2603.2,4.78747426]
[1646444314030,0.65859952,2603.8,2603.3,2.24810426]
[1646444314331,0.55859952,2603.7,2603.4,4.40427426]
[1646444314533,3.2238,2604.6,2603.4,3.5]
[1646444314534,0.70309034,2604.4,2603.4,3.5]
[1646444314730,0.70309034,2604.4,2603.4,4.5]
[1646444315032,0.70309034,2604.4,2604.0,1.03419363]
[1646444316429,0.00239606,2604.3,2604.0,1.03419363]
[1646444316830,0.00239606,2604.3,2604.0,0.16245958]
[1646444317432,0.70309034,2604.5,2604.0,0.16245958]
[1646444317672,0.00239606,2604.3,2604.0,0.16245958]
[1646444318779,0.93891947,2605.1,2604.0,3.54565958]
[1646444318780,0.70309034,2605.1,2604.0,3.54565958]
[1646444318978,0.192,2605.5,2604.0,5.85765958]
[1646444318979,0.00239896,2604.3,2604.0,5.85765958]
[1646444319180,0.00239896,2604.3,2604.0,6.85765958]
[1646444319377,0.70309034,2605.2,2604.2,0.3832]
[1646444319584,0.70309034,2605.3,2604.4,1.34334]
[1646444320180,0.70309034,2605.4,2604.4,1.34334]
[1646444320382,0.89509034,2605.6,2605.2,0.95777288]
[1646444320579,0.192,2605.6,2605.2,0.95777288]
[1646444320783,0.89489034,2605.7,2605.2,0.95777288]
[1646444320982,0.70309034,2605.7,2605.2,0.95777288]
[1646444321181,0.70309034,2605.7,2604.5,2.7356]
[1646444321182,4.20309034,2605.7,2604.5,2.7356]
[1646444321438,1.08629034,2605.3,2604.5,2.7356]
[1646444321635,0.70309034,2605.3,2604.5,1.5946]
[1646444321835,0.70309034,2605.3,2604.4,0.25]
[1646444322034,0.70309034,2605.3,2604.1,3.7982]
[1646444322240,0.94801086,2605.2,2604.7,1.18840537]
[1646444322435,0.00217136,2605.0,2604.7,1.18840537]
[1646444323439,1.08629034,2605.4,2604.7,1.18840537]
[1646444323639,0.00274008,2605.0,2604.7,1.18840537]
[1646444324644,0.70309034,2605.6,2604.7,1.17840537]
[1646444324847,0.70309034,2605.6,2605.2,0.91482891]
[1646444325473,0.70309034,2605.6,2604.3,3.58594]
[1646444325673,4.20309034,2605.6,2604.3,2.2425]
[1646444325876,4.58629034,2605.6,2604.3,2.2425]
[1646444326074,0.00274006,2605.1,2604.3,1.2425]
[1646444326673,0.00274006,2605.1,2604.8,0.88552401]
[1646444327076,0.3832,2605.2,2604.8,0.88552401]
[1646444327277,0.3832,2605.2,2604.3,1.2425]
[1646444327478,0.00274006,2605.1,2604.1,2.415]
[1646444328075,0.00274006,2605.1,2604.0,6.2322329]
[1646444328273,0.3832,2605.2,2604.0,6.2322329]
[1646444328474,0.00267595,2604.7,2604.0,6.2322329]
[1646444329349,0.00267595,2604.7,2604.1,1.046668]
[1646444329549,4.20309034,2605.5,2604.1,1.429868]
[1646444329750,0.00267599,2604.5,2604.1,1.429868]
[1646444330155,0.00267599,2604.5,2604.1,13.099868]
[1646444330349,0.00267599,2604.5,2604.1,14.099868]
[1646444330649,3.5,2605.6,2604.2,19.28564]
[1646444330650,0.70309034,2605.6,2604.2,19.28564]
[1646444330851,2.89329034,2605.9,2604.5,0.3832]
[1646444331052,2.89329034,2605.9,2604.7,0.3832]
[1646444331053,2.1902,2605.9,2604.7,0.3832]
[1646444331451,7.47,2606.0,2604.8,0.9599873]
[1646444332254,0.00262606,2605.5,2604.8,0.9599873]
[1646444332457,0.00262606,2605.5,2605.4,1.0620338]
[1646444333082,8.666643,2606.0,2605.4,1.0620338]
[1646444333281,0.00262605,2605.6,2605.4,1.0620338]
[1646444334383,0.63612875,2605.9,2605.4,1.0620338]
[1646444334584,0.00262604,2605.6,2605.4,1.0620338]
[1646444335584,0.63612875,2605.9,2605.4,1.0620338]
[1646444335785,0.00263723,2605.6,2605.4,1.0620338]
[1646444336185,0.00263723,2605.6,2604.9,3.4947]
[1646444336424,0.00263723,2605.6,2604.8,2.5069]
[1646444336625,0.63612875,2605.8,2604.8,1.5069]
[1646444336826,8.3832,2605.7,2604.7,1.05390134]
[1646444337128,0.00263727,2605.4,2604.5,1.0]
[1646444337326,0.38583727,2605.4,2604.5,1.0]
[1646444337527,0.97396233,2605.0,2604.5,1.9535309]
[1646444337732,0.97396233,2605.0,2604.3,1.0]
[1646444337930,1.35716233,2605.0,2604.3,1.0]
[1646444338128,1.35716233,2605.0,2604.1,2.3238]
[1646444338129,4.1051354,2604.9,2604.1,2.3238]
[1646444338327,0.6051354,2604.8,2603.9,1.0]
[1646444338530,0.9883354,2604.8,2603.9,1.0]
[1646444338728,0.87280453,2604.3,2603.8,2.00207283]
[1646444338930,0.9883354,2604.7,2603.8,1.04164283]
[1646444338931,0.3832,2604.7,2603.8,1.04164283]
[1646444339130,0.3832,2604.5,2603.4,3.1313707]
[1646444339330,0.3832,2604.5,2603.4,0.25]
[1646444339537,0.3832,2604.5,2603.3,1.0]
[1646444339538,0.3832,2604.3,2603.3,1.0]
[1646444339733,0.3832,2604.1,2603.3,1.0]
[1646444339931,0.00263492,2604.5,2603.3,1.0]
[1646444339932,0.98877502,2604.0,2603.3,1.0]
[1646444340187,0.89436891,2603.5,2603.3,1.0]
[1646444341686,1.27756891,2603.5,2603.1,0.393]
[1646444341883,0.3832,2603.3,2603.1,0.393]
[1646444342282,3.5,2603.4,2603.1,0.393]
[1646444342283,0.9886612,2603.2,2603.1,0.393]
[1646444342484,0.3832,2603.2,2603.1,0.393]
[1646444342683,1.27756891,2603.5,2603.1,0.393]
[1646444342889,0.60548017,2603.4,2603.1,0.393]
[1646444343292,0.79748017,2603.4,2603.1,0.393]
[1646444343484,0.192,2603.4,2603.1,0.393]
[1646444343687,1.9984,2603.9,2603.2,3.5]
[1646444343928,1.07756057,2604.0,2603.3,0.96058]
[1646444344133,2.70149034,2604.2,2603.3,0.96058]
[1646444344134,1.9984,2604.2,2603.3,0.96058]
[1646444344336,4.2037,2604.7,2603.4,3.5]
[1646444344337,0.0026335,2604.4,2603.4,3.5]
[1646444344532,0.0026335,2604.4,2603.6,1.92074]
[1646444344732,1.09441271,2604.3,2603.8,1.07384335]
[1646444345333,1.07756057,2605.3,2603.9,8.0]
[1646444345538,0.3836,2605.6,2604.2,3.0]
[1646444345539,0.59348121,2605.2,2604.2,3.0]
[1646444345739,0.3836,2605.6,2604.6,3.3832]
[1646444345934,2.0,2605.8,2604.7,3.8832]
[1646444346132,2.0,2605.8,2604.9,1.34302]
[1646444346339,2.0,2605.8,2604.7,1.0]
[1646444346632,2.0,2605.8,2604.7,1.96014]
[1646444346832,2.0,2605.8,2604.5,6.4201946]
[1646444347032,0.1477,2605.7,2604.5,6.4201946]
[1646444347439,0.1477,2605.7,2605.0,0.93311201]
[1646444347440,0.89491095,2605.5,2605.0,0.93311201]
[1646444347688,0.1477,2605.7,2605.0,0.93311201]
[1646444348081,2.0,2605.8,2605.0,0.93311201]
[1646444348277,2.0,2605.8,2605.0,4.43311201]
[1646444348478,2.0,2605.8,2605.0,0.93311201]
[1646444348678,2.0,2605.8,2605.0,3.85294201]
[1646444348880,1.10036616,2605.7,2605.0,2.85294201]
[1646444349083,0.00216606,2605.5,2605.0,1.93311201]
[1646444349283,0.00216606,2605.5,2605.0,0.93311201]
[1646444349884,2.0,2605.8,2605.1,8.0]
[1646444349885,1.10253222,2605.8,2605.1,8.0]
[1646444350088,0.9265,2606.0,2605.2,0.3832]
[1646444350284,0.9265,2606.0,2605.4,0.3832]
[1646444350485,0.93028461,2606.9,2605.6,4.5]
[1646444350694,0.93028461,2606.9,2605.7,3.6918]
[1646444350884,0.93028461,2606.9,2606.4,1.21835297]
[1646444350885,1.17505957,2606.9,2606.4,1.21835297]
[1646444351088,0.93028461,2607.2,2606.4,2.17789297]
[1646444352030,0.93028461,2607.3,2606.5,3.5]
[1646444352230,1.83568271,2607.5,2607.0,0.99296598]
[1646444352531,0.9053981,2607.5,2607.0,1.95233598]
[1646444352930,0.8326749,2607.6,2607.0,1.95233598]
[1646444353136,1.1024,2607.8,2607.4,0.9521931]
[1646444353333,1.1024,2607.8,2607.4,0.13179453]
[1646444353529,7.47,2607.9,2607.4,0.13179453]
[1646444353729,1.36836934,2608.0,2607.4,0.13179453]
[1646444353931,0.00216408,2607.7,2607.4,0.13179453]
[1646444354336,0.00216408,2607.7,2607.4,2.04996453]
[1646444354535,1.50656931,2608.6,2607.6,3.7]
[1646444354734,1.36836934,2608.6,2607.8,0.95898]
[1646444354936,1.36836934,2608.6,2607.5,1.0]
[1646444355193,0.00273723,2607.7,2607.5,1.0]
[1646444355382,0.00273723,2607.7,2607.3,1.0958949]
[1646444355885,0.69788218,2607.9,2607.3,1.0958949]
[1646444356081,0.69788218,2607.9,2607.8,1.21310376]
[1646444356481,0.93152527,2608.3,2607.8,1.21310376]
[1646444356482,1.36836934,2608.3,2607.8,1.21310376]
[1646444356683,0.69863991,2607.9,2607.8,1.21310376]
[1646444356881,0.69863991,2608.1,2607.6,0.4936884]
[1646444357481,0.69863991,2608.1,2607.9,0.93375721]
[1646444357683,0.69863991,2608.2,2607.4,2.91822]
[1646444358084,0.69863991,2608.0,2607.4,1.91822]
[1646444358285,2.28320422,2608.5,2607.1,1.91838]
[1646444358286,0.69863991,2607.9,2607.1,1.91838]
[1646444358487,0.69863991,2607.9,2607.2,4.8364102]
[1646444358686,0.00216041,2607.9,2607.7,1.03067641]
[1646444359536,0.69863991,2608.1,2607.7,1.03067641]
[1646444359837,0.00273718,2607.9,2607.2,6.4182402]
[1646444360036,0.00273718,2607.9,2607.2,2.9182402]
[1646444360633,0.00273718,2607.9,2607.2,5.4182402]
[1646444360835,0.69863991,2608.2,2607.5,0.87327141]
[1646444361040,0.52139997,2608.6,2607.5,0.87327141]
[1646444361041,0.00273708,2607.8,2607.5,0.87327141]
[1646444361936,0.69863991,2608.3,2607.5,0.87327141]
[1646444362137,0.00273716,2607.8,2607.5,0.87327141]
[1646444362336,0.00273716,2607.8,2607.5,1.83236141]
[1646444363187,0.69863991,2608.3,2607.5,1.83236141]
[1646444363386,0.00273347,2607.8,2607.5,1.06497141]
[1646444364386,1.08183991,2608.4,2607.5,1.06497141]
[1646444364589,0.00266985,2607.8,2607.5,0.87327141]
[1646444364896,0.00266985,2607.8,2606.8,1.0]
[1646444365487,1.08183991,2607.9,2606.3,0.1917]
[1646444365688,1.2874814,2607.3,2606.7,1.19578121]
[1646444365888,0.47546164,2607.2,2606.7,1.19578121]
[1646444366288,0.00266956,2607.8,2606.7,2.19578121]
[1646444366531,0.47809697,2607.8,2606.8,3.6917]
[1646444366728,0.47542741,2607.7,2606.8,3.6917]
[1646444366932,0.47542741,2607.6,2607.5,0.976325]
[1646444367130,0.87316811,2608.1,2607.5,0.976325]
[1646444367131,0.0026732,2607.8,2607.5,0.976325]
[1646444367533,0.47810061,2607.8,2607.5,0.976325]
[1646444367936,0.3834,2608.5,2607.5,0.976325]
[1646444368133,0.47508162,2608.4,2607.5,4.476325]
[1646444368433,0.00262133,2607.8,2607.6,3.5]
[1646444368640,1.1024,2608.6,2607.7,4.8832]
[1646444368833,0.47511343,2608.5,2608.0,0.95871]
[1646444369034,0.1917,2608.9,2608.6,1.13042348]
[1646444369235,0.2007482,2609.0,2608.6,1.13042348]
[1646444369834,0.2007482,2609.0,2608.6,2.08910348]
[1646444370035,0.0092482,2609.0,2608.6,2.08910348]
[1646444370682,0.00215878,2608.9,2608.7,3.5]
[1646444371080,0.00215878,2608.9,2608.7,4.5]
[1646444371479,0.0092482,2609.0,2608.8,3.5]
[1646444371881,0.00273937,2608.9,2608.8,4.5]
[1646444372081,0.00273937,2608.9,2608.8,3.5]
[1646444372281,0.00273937,2608.9,2608.8,1.0]
[1646444372485,0.00273937,2608.9,2608.8,3.5]
[1646444372686,0.0092482,2609.0,2608.8,4.5]
[1646444372885,0.0092482,2609.0,2608.9,5.41698]
[1646444373087,0.0027223,2609.4,2609.0,4.5]
[1646444373586,0.0027223,2609.4,2609.1,1.11395588]
[1646444374133,0.0027223,2609.4,2609.1,2.07245588]
[1646444374334,0.00546157,2609.4,2609.1,2.07245588]
[1646444374535,0.00546157,2609.4,2609.0,0.1915]
[1646444374737,0.00546157,2609.4,2608.7,1.0]
[1646444375136,0.0027223,2609.4,2608.4,7.37612]
[1646444375336,0.00215932,2609.2,2608.4,7.37612]
[1646444375535,0.00215932,2609.2,2608.4,7.75932]
[1646444375735,0.00215932,2609.2,2609.0,1.13458906]
[1646444376338,0.0027223,2609.4,2609.0,1.13458906]
[1646444376540,0.0027418,2609.2,2609.0,1.13458906]
[1646444376738,0.0027418,2609.2,2608.7,0.41565485]
[1646444376739,2.0,2609.1,2608.7,0.41565485]
[1646444376939,0.0027418,2609.2,2608.4,8.6766472]
[1646444377138,0.0027418,2609.2,2608.4,5.1766472]
[1646444377340,0.0027418,2609.2,2608.4,8.6766472]
[1646444377541,0.0027223,2609.4,2608.6,0.9586244]
[1646444377780,0.0027223,2609.4,2608.8,0.95858]
[1646444378079,0.00274187,2608.9,2608.8,0.95858]
[1646444378884,0.0027223,2609.4,2608.8,2.12663817]
[1646444379086,0.0027223,2609.4,2609.2,0.96961707]
[1646444380084,0.0027223,2609.4,2608.8,2.9171848]
[1646444380284,0.00546406,2609.4,2608.8,0.9586048]
[1646444380583,0.00546406,2609.4,2608.8,1.9586048]
[1646444380783,0.00546406,2609.4,2608.7,1.95861]
[1646444380984,0.00546406,2609.4,2608.7,0.95861]
[1646444381186,0.0027223,2609.4,2608.7,0.95861]
[1646444381433,0.00274181,2609.2,2608.8,4.45861]
[1646444381945,0.00274181,2609.2,2608.8,9.6760105]
[1646444382435,0.0027223,2609.4,2609.0,0.3832]
[1646444382633,0.0027223,2609.4,2609.2,1.34153]
[1646444382834,0.0027223,2609.4,2609.3,3.5]
[1646444383034,0.0028298,2609.8,2609.5,1.9165]
[1646444383245,0.0028298,2609.8,2608.8,3.12508]
[1646444383436,0.0028298,2609.8,2608.8,0.25]
[1646444383838,0.0028298,2609.8,2608.9,0.95858]
[1646444384043,0.00274176,2609.4,2608.9,0.95858]
[1646444384253,0.00274176,2609.4,2609.2,1.22825639]
[1646444384842,0.0028298,2609.8,2609.2,1.22825639]
[1646444385041,0.00267595,2609.4,2609.2,1.22825639]
[1646444386083,0.0028298,2609.8,2609.2,1.22825639]
[1646444386484,0.00267595,2609.4,2609.2,1.22825639]
[1646444386685,0.00267595,2609.4,2608.9,3.30032]
[1646444386988,0.00267595,2609.4,2609.3,1.02605416]
[1646444387285,0.0028298,2609.8,2609.3,1.02605416]
[1646444388185,0.0028298,2609.8,2608.8,0.25]
[1646444388586,0.3860298,2609.8,2608.8,0.25]
[1646444388787,0.3832,2609.6,2608.6,1.0]
[1646444389035,0.00096,2609.5,2608.6,1.0]
[1646444389234,0.00262491,2609.7,2609.3,1.00114079]
[1646444389235,0.00096,2609.6,2609.3,1.00114079]
[1646444389434,0.00262491,2609.7,2609.3,1.00114079]
[1646444389640,0.35666725,2609.7,2609.3,1.00114079]
[1646444389836,0.35666725,2609.6,2609.3,1.00114079]
[1646444390034,0.35666725,2609.5,2609.3,1.00114079]
[1646444390234,0.00262492,2609.6,2609.3,1.00114079]
[1646444390838,0.35666016,2609.7,2609.3,1.00114079]